Workbook

Sheet 추경요약
A1: 2017학년도 소주한국학교 제1차 추가경정예산
A3: 세입 항목 | B3: 증감액 | C3: 세출 항목 | D3: 세부내역 | E3: 증감액
A4: 교육부지원 운영비 | B4: ¥296,446.00 | C4: 교수학습활동비 | D4: 유치원교과활동 | E4: ¥41,299.00
A5: 교육부지원 인건비 | B5: ¥-481,726.00 | D5: 중등교과활동 | E5: ¥102,055.00
A6: 입학금, 수업료 | B6: ¥310,000.00 | C6: 인건비 | D6: 인건비 | E6: ¥231,800.00
A7: 과년도수입 | B7: ¥150,000.00 | C7: 일반운영비 | D7: 일반운영비 | E7: ¥368,000.00
A8: 순세계잉여금 | B8: ¥900,282.00 | D8: 대규모시설보수비 | E8: ¥431,848.00
A9: 수익자부담경비 | B9: ¥201,200.00 | C9: 수익자부담경비 | D9: 수익자부담경비 | E9: ¥201,200.00
A10: 계속비이월 | B10: ¥4,768,455.00 | C10: 시설비 | D10: 교사신축비 | E10: ¥4,768,455.00
A11: 사고이월 | B11: ¥191,861.00 | C11: 교수학습활동비 | D11: 체육기자재구입 | E11: ¥191,861.00
A12: 총계 | B12: =SUM(B4:B11) -> ¥6,336,518.00 | C12: 총계 | E12: =SUM(E4:E11) -> ¥6,336,518.00

Sheet 세입_2017
A1: 2017학년도 소주한국학교 제1차 세입 추가경정예산
O2: (단위 : RMB)
A3: 세입
A4: 항 | B4: 목 | C4: 산출기초
C5: 세목 | D5: 내역 | E5: 경정예산 | F5: 증감액 | G5: 단가 | H5: 인원(기간) | K5: 횟수 | O5: 기정예산액
A6: 학부모부담수입
B7: 입학금 | C7: 입학금 | E7: =O7+F7 -> 120,000 | F7: 60,000 | G7: 6,000 | H7: * | I7: 58 | J7: 명 | K7: * | L7: 1 | M7: 회 | N7: = | O7: 60,000
B8: 소계 | E8: =SUM(E7) -> 120,000 | F8: 60,000 | G8: 6,000 | H8: 0 | I8: 58 | J8: 0 | K8: 0 | L8: 1 | M8: 0 | N8: 0 | O8: =SUM(O7) -> 60,000
B9: 수업료 | C9: 유치원 | E9: =O9+F9 -> 250,000 | F9: 250,000 | O9: 0
C10: 초등 | E10: =O10+F10 -> 3,000,000 | O10: 3,000,000
C11: 중등 | E11: =O11+F11 -> 2,160,000 | O11: 2,160,000
C12: 고등 | E12: 2,730,000 | O12: 2,730,000
B13: 소계 | E13: 8,140,000 | F13: =SUM(F9:F12) -> 250,000 | G13: =SUM(G10:G12) -> 0 | H13: 0 | I13: 0 | J13: 0 | K13: 0 | L13: 0 | M13: 0 | N13: 0 | O13: =SUM(O10:O12) -> 7,890,000
B14: 수익자부담경비 | C14: 수학여행 | D14: 초등 | E14: =O14+F14 -> 240,000 | O14: 240,000
D15: 중등 | E15: =O15+F15 -> 144,000 | O15: 144,000
D16: 고등 | E16: 156,000 | O16: 156,000
C17: 현장학습 | D17: 초등 | E17: =O17+F17 -> 120,000 | O17: 120,000
D18: 중등 | E18: =O18+F18 -> 72,000 | O18: 72,000
D19: 고등 | E19: =O19+F19 -> 78,000 | O19: 78,000
C20: 급간식비 | D20: 전교생 | E20: =O20+F20 -> 1,221,250 | F20: 40,000 | G20: 20 | H20: * | I20: 215 | J20: 명 | K20: * | L20: 184 | M20: 일 | N20: = | O20: 1,181,250
C21: 방과후학교 | D21: 초등 | E21: =O21+F21 -> 120,000 | G21: 2,500 | H21: * | I21: 101 | J21: 명 | K21: * | L21: 1 | M21: 년 | N21: = | O21: 120,000
D22: 중등 | E22: 72,000 | G22: 2,500 | H22: * | I22: 53 | J22: 명 | K22: * | L22: 1 | M22: 년 | N22: = | O22: 72,000
D23: 고등 | E23: 78,000 | G23: 2,500 | H23: * | I23: 61 | J23: 명 | K23: * | L23: 1 | M23: 년 | N23: = | O23: 78,000
C24: 통학버스비 | D24: 전교생 | E24: 1,961,920 | F24: 161,200 | G24: 31 | H24: * | I24: 215 | J24: 명 | K24: * | L24: 184 | M24: 일 | N24: = | O24: 1,800,720
B25: 소계 | E25: =SUM(E14:E24) -> 4,263,170 | F25: =SUM(F14:F24) -> 201,200 | O25: =SUM(O14:O24) -> 4,061,970
A26: 계 | E26: =E8+E13+E25 -> 12,523,170 | F26: =E26-O26 -> 511,200 | O26: =O8+O13+O25 -> 12,011,970
A27: 교육부지원금
B28: 교직원인건비 | C28: 교직원인건비 | E28: =O28+F28 -> 2,418,274 | F28: -481,726 | O28: 2,900,000
B29: 운영비 | C29: 학교운영비 | E29: =O29+F29 -> 1,596,446 | F29: 296,446 | O29: 1,300,000
A30: 계 | E30: =SUM(E28:E29) -> 4,014,720 | F30: =E30-O30 -> -185,280 | O30: =SUM(O28:O29) -> 4,200,000
A31: 자체수입
B32: 사용료및수수료 | C32: 제증명수수료 | E32: =F32+O32 -> 4,000 | O32: 4,000
B33: 잡수입 | C33: 예적금이자 | E33: =O33+F33 -> 40,000 | G33: 20,000 | H33: * | I33: 1 | J33: 년 | K33: * | L33: 1 | M33: 회 | N33: = | O33: 40,000
C34: 행정잡수입 | E34: =O34+F34 -> 12,500 | G34: 10,000 | H34: * | I34: 1 | J34: 년 | K34: * | L34: 1 | M34: 회 | N34: = | O34: 12,500
A35: 계 | E35: =SUM(E32:E34) -> 56,500 | F35: =E35-O35 -> 0 | O35: =SUM(O32:O34) -> 56,500
A36: 기타수입
B37: 과년도수입 | C37: 과년도수입 | E37: =O37+F37 -> 150,000 | F37: 150,000 | O37: 0
B38: 이월금 | C38: 순세계잉여금 | E38: =O38+F38 -> 1,900,282 | F38: 900,282 | O38: 1,000,000
C39: 계속비이월금 | E39: 7,768,455 | F39: 4,768,455 | O39: 3,000,000
C40: 사고이월금 | E40: 191,861 | F40: 191,861 | O40: 0
A41: 계 | E41: =SUM(E37:E40) -> 10,010,598 | F41: =F37+F38+F39+F40 -> 6,010,598 | O41: =SUM(O37:O40) -> 4,000,000
A42: 합계 | E42: =E26+E30+E35+E41 -> 26,604,988 | F42: =F41+F35+F30+F26 -> 6,336,518 | O42: =O26+O30+O35+O41 -> 20,268,470

Sheet 세출_2017
A1: 2017학년도 소주한국학교 제1차 세출 추가경정 예산
N2: (단위 : RMB)
A3: 세출
A4: 항 | B4: 목 | C4: 세항
D5: 단가 | E5: 인원 | H5: 횟수 | L5: 경정 | M5: 증감 | N5: 기정
A6: 1.인건비 | B6: 1.교원 | C6: 교원인건비 | D6: ¥13,200.00 | E6: * | F6: 17 | G6: 명 | H6: * | I6: 12 | J6: 월 | K6: = | L6: =N6+M6 -> 7,765,600 | M6: 147,000 | N6: 7,618,600
B7: 2.직원및계약교직원 | C7: 직원및계약교직원 인건비 | L7: =N7+M7 -> 1,488,200 | M7: 84,800 | N7: 1,403,400
A8: 계 | L8: 9,253,800 | M8: =SUM(M6:M7) -> 231,800 | N8: =SUM(N6:N7) -> 9,022,000
A9: 2.학교운영비 | B9: 1.일반운영비 | C9: 일반운영비 (경비청소 등 용역비) | D9: ¥890,000.00 | E9: * | F9: 1 | G9: 명 | H9: * | I9: 1 | J9: 년 | K9: = | L9: 1,893,600 | M9: 368,000 | N9: 1,525,600
B10: 소계 | L10: 1,893,600 | M10: =SUM(M9:M9) -> 368,000 | N10: =SUM(N9:N9) -> 1,525,600
B11: 2.교수학습활동비 | C11: 유치원교과활동 | L11: 40,299 | M11: 40,299 | N11: 0
C12: 초등교과활동 | L12: 399,200 | N12: 399,200
C13: 중등교과활동 -명예사서관련 : 47,300 -슈퍼스터디 : 31,500 -뒤뜰야영 : 10,000 -진로페스티벌 : 5,000 -악기구입 : 8,255 | L13: =N13+M13 -> 610,430 | M13: 102,055 | N13: 508,375
C14: 체육기자재구입 (교육부지원금 사고이월) | L14: =M14+N14 -> 191,861 | M14: 191,861 | N14: 0
B15: 소계 | L15: 1,241,790 | M15: =SUM(M11:M14) -> 334,215 | N15: =SUM(N11:N13) -> 907,575
B16: 3.학생복리비 | C16: 학생복리비 | D16: ¥500.00 | E16: * | F16: 1 | G16: 년 | H16: * | I16: 2 | J16: 회 | K16: = | L16: 100,500 | N16: 100,500
B17: 소계 | L17: 100,500 | M17: =SUM(M16:M16) -> 0 | N17: =SUM(N16:N16) -> 100,500
B18: 4.업무추진비 | C18: 업무추진비 | D18: ¥20.00 | E18: * | F18: 50 | G18: 명 | H18: * | I18: 5 | J18: 회 | K18: = | L18: 109,000 | M18: 0 | N18: 109,000
B19: 소계 | L19: 109,000 | M19: =M18 -> 0 | N19: =SUM(N18) -> 109,000
A20: 계 | L20: 3,344,890 | M20: =M19+M17+M15+M10 -> 702,215 | N20: =N10+N15+N17+N19 -> 2,642,675
A21: 3.자산취득비 | B21: 1.자산취득비 | C21: 비품 구입 | D21: ¥800.00 | E21: * | F21: 9 | G21: 개 | H21: * | I21: 1 | J21: 회 | K21: = | L21: 500,000 | M21: 0 | N21: 500,000
A22: 계 | L22: 500,000 | M22: =SUM(M21:M21) -> 0 | N22: =SUM(N21:N21) -> 500,000
A23: 4.시설(대수선)비 | B23: 1.시설비 | C23: 교사신축비(계속비이월) | L23: 7,768,455 | M23: 4,768,455 | N23: 3,000,000
B24: 소계 | L24: 7,768,455 | M24: =SUM(M23:M23) -> 4,768,455 | N24: =SUM(N23:N23) -> 3,000,000
B25: 2.대수선비 | C25: 대규모시설보수비 | D25: ¥25,000.00 | E25: * | F25: 1 | G25: 년 | H25: * | I25: 1 | J25: 회 | K25: = | L25: 1,432,848 | M25: 432,848 | N25: 1,000,000
C26: 소규모수선 등 시설유지비 | D26: ¥25,000.00 | E26: * | F26: 1 | G26: 년 | H26: * | I26: 1 | J26: 회 | K26: = | L26: 29,825 | M26: 0 | N26: 29,825
C27: 공구 등 시설유지물품구입 | D27: ¥25,000.00 | E27: * | F27: 1 | G27: 년 | H27: * | I27: 1 | J27: 회 | K27: = | L27: 12,000 | M27: 0 | N27: 12,000
B28: 소계 | L28: 1,474,673 | M28: =SUM(M25:M27) -> 432,848 | N28: =SUM(N25:N27) -> 1,041,825
A29: 계 | L29: 9,243,128 | M29: =M28+M24 -> 5,201,303 | N29: =N24+N28 -> 4,041,825
A30: 5.수익자부담경비 | B30: 1.현장학습비 | C30: 수학여행비 | L30: 540,000 | N30: 540,000
C31: 현장학습비 | D31: ¥1,000.00 | E31: * | F31: 70 | G31: 명 | H31: * | I31: 1 | J31: 회 | K31: = | L31: 270,000 | N31: 270,000
B32: 소계 | L32: 810,000 | M32: =SUM(M30:M31) -> 0 | N32: =SUM(N30:N31) -> 810,000
B33: 2.학교급식비 | C33: 급간식비 | D33: ¥20.00 | E33: * | F33: 120 | G33: 명 | H33: * | I33: 190 | J33: 일 | K33: = | L33: 1,221,250 | M33: 40,000 | N33: 1,181,250
B34: 소계 | L34: 1,221,250 | M34: =SUM(M33:M33) -> 40,000 | N34: =SUM(N33:N33) -> 1,181,250
B35: 3.방과후학교교육활동비 | C35: 방과후학교 | D35: ¥1,000.00 | E35: * | F35: 70 | G35: 명 | H35: * | I35: 2 | J35: 회 | K35: = | L35: 270,000 | N35: 270,000
B36: 소계 | L36: 270,000 | M36: =M35 -> 0 | N36: =N35 -> 270,000
B37: 4.기타수익자부담경비 | C37: 통학버스비 | D37: ¥30.00 | E37: * | F37: 120 | G37: 명 | H37: * | I37: 190 | J37: 일 | K37: = | L37: 1,685,920 | M37: 161,200 | N37: 1,524,720
C38: 버스기사 및 관리용역비 | D38: ¥500.00 | E38: * | F38: 70 | G38: 명 | H38: * | I38: 2 | J38: 회 | K38: = | L38: 204,000 | N38: 204,000
C39: 유류비 및 유지관리비 | L39: 72,000 | N39: 72,000
B40: 소계 | L40: 1,961,920 | M40: =SUM(M37:M39) -> 161,200 | N40: =SUM(N37:N39) -> 1,800,720
A41: 계 | L41: 4,263,170 | M41: =M40+M36+M34+M32 -> 201,200 | N41: =N32+N34+N36+N40 -> 4,061,970
A42: 6.예비비및기타 | B42: 1.예비비 | C42: 예비비 | L42: 0 | M42: 0 | N42: 0
B43: 2.반환금 | C43: 목적경비반환 | L43: 0 | M43: 0 | N43: 0
B44: 3.적립금 | C44: 시설보수적립금 | L44: 0 | M44: 0 | N44: 0
B45: 4.환차손 | C45: 환차손 | L45: 0 | M45: 0 | N45: 0
A46: 계 | L46: 0 | M46: =SUM(M42:M45) -> 0 | N46: =SUM(N42:N45) -> 0
A47: 합 계 | L47: 26,604,988 | M47: =M46+M41+M29+M22+M20+M8 -> 6,336,518 | N47: =N8+N20+N22+N29+N41+N46 -> 20,268,470
